[Event "Portugal Open 2019"]
[Site "Lisbon"]
[Date "2019.02.05"]
[Round "5.27"]
[White "Froewis, Annika"]
[Black "Plichta, Kamil"]
[Result "0-1"]
[ECO "B03"]
[WhiteElo "2104"]
[BlackElo "2347"]
[Annotator "NA"]
[PlyCount "104"]
[EventDate "2019.01.25"]
[EventType "swiss"]
[EventCountry "POR"]
[SourceTitle "playchess.com"]
[Source "ChessBase"]
[SourceQuality "1"]
[TimeControl "5400+30"]

{[%evp 16,95,54,32767,32767,32767,49,32767,32767,13,35,8,20,18,14,0,32767,0,0,0,-7,0,21,0,0,-8,-15,-14,32767,-8,0,-8,0,0,0,0,32767,-8,0,-27,32767,-56,0,0,32767,32767,0,32767,32767,32767,-95,32767,32767,-111,-84,32767,-104,32767,-127,-195,32767,32767,-186,-159,-123,32767,32767,-364,-392,-384,32767,32767,32767,32767,-611,32767,-759,-703,32767,32767,32767,-1300]} 1. e4 {[%emt 0:00:00]} Nf6 {[%emt 0:00:49]} 2. e5 {[%emt 0:00:00]} Nd5 {[%emt 0:00:05]} 3. c4 {[%emt 0:00:00]} Nb6 {[%emt 0:00:03]} 4. d4 {[%emt 0:00:00]} d6 {[%emt 0:00:04]} 5. exd6 {[%emt 0:00:00]} exd6 {[%emt 0:00:05]} 6. Nc3 {[%emt 0:00:01]} Be7 {[%emt 0:00:08]} 7. Bd3 {[%emt 0:01:08]} O-O {[%emt 0:00:31]} 8. Nge2 {[%emt 0:00:12]} Na6 {[%emt 0:00:06]} 9. b3 {[%emt 0:05:15]} c6 {[%emt 0:00:14]} 10. O-O {[%emt 0:00:52]} Nb4 {[%emt 0:00:41]} 11. Bb1 {[%emt 0:01:36]} d5 {[%emt 0:00:08]} 12. c5 {[%emt 0:04:24]} Nd7 {[%emt 0:00:47]} 13. a3 {[%emt 0:00:39]} Na6 $1 {[%emt 0:00:05]} 14. b4 {[%emt 0:10:08]} Nc7 {[%emt 0:00:29]} 15. Qd3 {[%emt 0:01:26]} g6 {[%emt 0:00:22]} 16. Bc2 {[%emt 0:12:09]} Nf6 {[%emt 0:05:43]} 17. Ng3 {[%emt 0:06:32]} b6 {[%emt 0:00:26]} 18. Re1 {[%emt 0:01:50]} bxc5 {[%emt 0:03:02]} 19. bxc5 {[%emt 0:00:46]} Ba6 {[%emt 0:03:24]} 20. Qd2 {[%emt 0:06:43]} Ne6 {[%emt 0:02:15]} 21. Na2 {[%emt 0:01:11]} Bc4 {[%emt 0:02:13]} 22. Nb4 {[%emt 0:01:11]} Qd7 {[%emt 0:03:40]} 23. Ba4 {[%emt 0:05:16]} Rfc8 {[%emt 0:02:20]} 24. Bb2 {[%emt 0:01:31]} Rab8 {[%emt 0:06:37]} 25. Bc3 {[%emt 0:01:58]} Bf8 {[%emt 0:11:01]} 26. Rab1 {[%emt 0:05:10]} Bg7 {[%emt 0:05:33]} 27. f3 $1 {[%emt 0:04:00]} h5 {[%emt 0:00:59]} 28. Nh1 {[%emt 0:02:16]} Kh7 {[%emt 0:01:28]} 29. Nf2 {[%emt 0:01:12]} Ng8 {[%emt 0:02:25]} 30. Kh1 {[%emt 0:02:11]} Ne7 {[%emt 0:00:51]} 31. Nh3 {[%emt 0:04:59]} Bh6 {[%emt 0:01:29]} 32. Qc2 {[%emt 0:02:48]} Nf5 {[%emt 0:01:09]} 33. Qf2 {[%emt 0:02:23]} Bg7 {[%emt 0:01:40]} 34. Rxe6 {[%emt 0:04:33]} fxe6 {[%emt 0:00:06]} 35. Ng5+ {[%emt 0:01:03]} Kg8 {[%emt 0:01:07]} 36. Re1 {[%emt 0:00:17]} a5 {[%emt 0:00:36]} 37. Nc2 {[%emt 0:03:56]} (37. Nxc6 $17 Rxc6 38. Bxc6 Qxc6 39. g4 hxg4 40. fxg4) 37... Re8 {[%emt 0:03:05]} 38. g4 {[%emt 0:02:36]} hxg4 {[%emt 0:00:55]} 39. fxg4 {[%emt 0:00:07] [#]} Nh6 $1 {[%emt 0:00:12]} 40. Qg3 {[%emt 0:00:34]} Bb3 {[%emt 0:01:13]} 41. Bxb3 {[%emt 0:02:39]} Rxb3 {[%emt 0:00:06]} 42. Qd3 {[%emt 0:00:25]} Nf7 {[%emt 0:01:38]} 43. Nf3 {[%emt 0:01:22]} e5 {[%emt 0:00:54]} 44. dxe5 {[%emt 0:00:50]} Qxg4 {[%emt 0:02:20]} 45. Ncd4 {[%emt 0:01:37]} Nxe5 {[%emt 0:02:50]} 46. Nxe5 {[%emt 0:00:41]} Rxc3 {[%emt 0:00:10]} 47. Qxc3 {[%emt 0:01:25]} Rxe5 {[%emt 0:00:47]} 48. Nxc6 $19 {[%emt 0:01:33]} Re2 {[%emt 0:00:09]} 49. Ne7+ {[%emt 0:00:30]} Rxe7 {[%emt 0:00:06]} 50. Qd2 {[%emt 0:00:32]} Qf3+ {[%emt 0:00:06]} 51. Kg1 {[%emt 0:00:07]} Bd4+ {[%emt 0:00:15]} 52. Qxd4 {[%emt 0:00:06]} Rxe1# {[%emt 0:00:04]} 0-1

[Event "Portugal Open 2019"]
[Site "Lisbon"]
[Date "2019.02.05"]
[Round "5.29"]
[White "Gjestemoen-VonHirsch, Andre"]
[Black "Pantzar, Milton"]
[Result "0-1"]
[ECO "A45"]
[WhiteElo "2038"]
[BlackElo "2331"]
[Annotator "NA RC"]
[PlyCount "60"]
[EventDate "2019.01.25"]
[EventType "swiss"]
[EventCountry "POR"]
[SourceTitle "playchess.com"]
[Source "ChessBase"]
[SourceQuality "1"]
[TimeControl "5400+30"]

{[%evp 8,55,15,6,0,32767,32767,32767,32767,-20,32767,-35,32767,-72,-25,-50,-72,-93,-55,-68,-52,-72,-81,-198,32767,-280,-293,-289,-268,-319,-300,-468,-463,32767,32767,-954,-1120,32767,32767,-29987,-1495,32767,-1207,-1106,-1307,32767,32767,32767,32767,-29992]} 1. d4 {[%emt 0:00:00]} Nf6 {[%emt 0:00:00]} 2. Bf4 {[%emt 0:00:00]} d5 {[%emt 0:00:05]} 3. e3 {[%emt 0:00:00]} e6 {[%emt 0:00:23]} 4. Nf3 {[%emt 0:00:29]} c5 {[%emt 0:00:21] LiveBook: 881 Games} 5. c3 {[%emt 0:00:04]} Be7 {[%emt 0:00:29]} 6. Nbd2 {[%emt 0:01:05]} O-O {[%emt 0:00:11]} 7. Bd3 {[%emt 0:00:17]} Nh5 {[%emt 0:01:24]} 8. Bg3 {[%emt 0:04:32]} g6 {[%emt 0:00:40]} 9. Bxb8 {[%emt 0:08:31]} Rxb8 {[%emt 0:00:23]} 10. g4 {[%emt 0:00:38]} Nf6 {[%emt 0:14:17]} 11. Ne5 {[%emt 0:04:07]} Nd7 {[%emt 0:01:02]} 12. h4 {[%emt 0:12:48]} cxd4 {[%emt 0:05:58]} 13. cxd4 {[%emt 0:08:35]} Nxe5 {[%emt 0:05:06]} 14. dxe5 {[%emt 0:00:47]} d4 {[%emt 0:02:34]} ({But not} 14... Bxh4 15. Qf3 $11) 15. g5 {[%emt 0:11:16]} (15. e4 $15) 15... dxe3 {[%emt 0:04:10]} 16. Ne4 {[%emt 0:02:12]} Qa5+ {[%emt 0:02:33]} 17. Kf1 {[%emt 0:10:49]} Qxe5 {[%emt 0:01:13]} 18. Qg4 {[%emt 0:01:17]} Bd7 {[%emt 0:17:57]} 19. h5 {[%emt 0:05:18]} (19. Re1 $142) 19... Bc6 {[%emt 0:06:49]} 20. Qh4 {[%emt 0:05:24]} Bxe4 {[%emt 0:01:28]} 21. Bxe4 {[%emt 0:02:23]} (21. Qxe4 $142 Qxb2 {[%mdl 64] Double Attack} 22. Kg2 Qxf2+ 23. Kh3) 21... Bxg5 {[%emt 0:03:40]} 22. Qg4 {[%emt 0:00:51]} Qxb2 {[%emt 0:05:39]} 23. fxe3 {[%emt 0:01:11]} Qxa1+ {[%emt 0:00:41]} (23... f5 $142 24. Qe2 fxe4+ 25. Ke1 Qxa1+ 26. Qd1 Qf6 27. Qd4 Qf2+ 28. Kd1 Rfd8 29. Kc1 Rxd4 30. Kb1 Rb4+ 31. Kc1 Bxe3+ 32. Kd1 Rd8#) 24. Kg2 {[%emt 0:00:40]} Qb2+ {[%emt 0:00:59]} 25. Kh3 {[%emt 0:01:01]} f5 {[%emt 0:03:55]} 26. Qxg5 {[%emt 0:01:05]} fxe4 {[%emt 0:00:23]} 27. hxg6 {[%emt 0:00:04]} Rf3+ {[%emt 0:00:42]} 28. Kh4 {[%emt 0:00:48]} Qf2+ {[%emt 0:00:48]} 29. Kh5 {[%emt 0:00:21]} Rf5 {[%emt 0:00:27]} 30. gxh7+ {[%emt 0:00:05]} Kf7 {[%emt 0:01:11]} 0-1

[Event "Portugal Open 2019"]
[Site "Lisbon"]
[Date "2019.02.05"]
[Round "5.30"]
[White "Silva, Goncalo Nuno Neto P"]
[Black "Shailesh, Dravid"]
[Result "0-1"]
[ECO "B51"]
[WhiteElo "2027"]
[BlackElo "2324"]
[Annotator "NA RC"]
[PlyCount "82"]
[EventDate "2019.01.25"]
[EventType "swiss"]
[EventCountry "POR"]
[SourceTitle "playchess.com"]
[Source "ChessBase"]
[SourceQuality "1"]
[TimeControl "5400+30"]

{[%evp 8,74,17,31,42,20,32767,32767,32767,52,32767,32767,32767,32767,32767,15,30,32767,0,-4,0,0,16,5,5,-4,-13,-15,-4,32767,0,-111,32767,-135,-107,-193,-58,32767,32767,32767,-121,-135,-125,-143,-169,-260,-310,-302,-296,-366,-327,32767,-343,32767,32767,-352,-296,32767,32767,-450,-523,32767,-556,-474,32767,32767,32767,-569,-629]} 1. e4 {[%emt 0:00:00]} c5 {[%emt 0:00:00]} 2. Nf3 {[%emt 0:00:00]} d6 {[%emt 0:00:00]} 3. Bb5+ {[%emt 0:00:00]} Nd7 {[%emt 0:00:03]} 4. O-O {[%emt 0:00:00]} Ngf6 {[%emt 0:00:11]} 5. Re1 {[%emt 0:00:00]} a6 {[%emt 0:00:41] B51: Sicilian: Moscow Variation (3 Bb5+) without 3...Bd7} 6. Bd3 {[%emt 0:00:01]} b5 {[%emt 0:01:47]} (6... e6 7. a4 b6 8. b3 Bb7 9. Bb2 Be7 10. Na3 O-O 11. e5 Ne8 12. Nc4 d5 {½-½ (31) Amin,B (2709)-Saric,I (2692) Zagreb 2018}) 7. c4 {[%emt 0:00:01]} b4 {[%emt 0:00:16]} 8. Bc2 {[%emt 0:07:48] LiveBook: 5 Games} e5 {[%emt 0:01:09]} 9. d3 $146 {[%emt 0:00:58]} ({Predecessor:} 9. a3 bxa3 10. Rxa3 Be7 11. d3 O-O 12. Bd2 Qb6 {1-0 (44) Lagno,K (2543)-Ushenina,A (2501) Khanty-Mansiysk 2014}) 9... Rb8 {[%emt 0:02:29]} 10. Nbd2 {[%emt 0:00:43]} g6 {[%emt 0:01:55]} 11. Nf1 {[%emt 0:01:30]} Bg7 {[%emt 0:01:13]} 12. Ng3 {[%emt 0:01:21]} O-O {[%emt 0:07:01]} 13. Bg5 {[%emt 0:06:15]} h6 {[%emt 0:00:15]} 14. Bd2 {[%emt 0:00:02]} Nh7 {[%emt 0:10:47]} 15. Qc1 {[%emt 0:02:21]} h5 {[%emt 0:00:06]} 16. a3 {[%emt 0:01:57]} h4 {[%emt 0:02:48]} 17. Nf1 {[%emt 0:00:08]} h3 {[%emt 0:04:57]} 18. g3 {[%emt 0:08:09]} f5 {[%emt 0:01:00]} 19. Bd1 {[%emt 0:16:53]} (19. Nh4 $11 {keeps the balance.}) 19... f4 {[%emt 0:03:24]} 20. axb4 {[%emt 0:06:17]} cxb4 {[%emt 0:01:54]} 21. gxf4 {[%emt 0:12:01] [#]} (21. c5 $17 Nxc5 22. d4 exd4 23. Bxf4) 21... exf4 {[%emt 0:00:30]} ({Better is} 21... Nc5 $1 $17 {[%cal Rc5d3]} 22. d4 Nd3) 22. Bxf4 {[%emt 0:00:53]} Nc5 {[%emt 0:00:14]} 23. Qd2 {[%emt 0:00:36] [#]} Bxb2 $1 {[%emt 0:06:07]} 24. Qxb2 {[%emt 0:01:56]} Nxd3 {[%emt 0:00:57]} 25. Qd2 {[%emt 0:01:44]} Nxf4 {[%emt 0:00:10]} 26. c5 {[%emt 0:01:06]} (26. e5 {was worth a try.} Ng2 27. Re4 (27. Qd5+ $2 Kh8 $19) 27... dxe5 28. Qxd8 Rxd8 29. N3d2) 26... dxc5 {[%emt 0:03:39]} 27. Bb3+ {[%emt 0:00:52]} Kg7 {[%emt 0:01:29]} 28. Qb2+ {[%emt 0:02:25]} Qf6 {[%emt 0:00:39]} 29. e5 {[%emt 0:02:22]} Ne2+ {[%emt 0:01:05]} 30. Qxe2 {[%emt 0:03:33]} Qxf3 {[%emt 0:00:05]} 31. Qxf3 {[%emt 0:00:29]} Rxf3 {[%emt 0:00:06]} 32. Ne3 {[%emt 0:03:59]} Ng5 {[%emt 0:00:22]} 33. Rac1 {[%emt 0:03:50]} Rf8 {[%emt 0:01:13]} 34. Red1 {[%emt 0:05:26]} Nf3+ {[%emt 0:00:59]} 35. Kh1 {[%emt 0:00:02]} Nxe5 {[%emt 0:01:12]} 36. Rxc5 {[%emt 0:00:28]} Bb7+ {[%emt 0:00:29]} 37. Kg1 {[%emt 0:02:10]} Nf3+ $19 {[%emt 0:00:13]} 38. Kf1 {[%emt 0:00:19]} Nxh2+ {[%emt 0:00:10]} 39. Ke1 {[%emt 0:00:01]} Nf3+ {[%emt 0:00:33]} 40. Ke2 {[%emt 0:00:03]} h2 {[%emt 0:01:27]} 41. Rd7+ {[%emt 0:07:16]} Kh8 {[%emt 0:00:14]} 0-1

[Event "Portugal Open 2019"]
[Site "Lisbon"]
[Date "2019.02.05"]
[Round "5.36"]
[White "Chylewski, Patryk"]
[Black "Thompson, Ian D"]
[Result "1/2-1/2"]
[ECO "C06"]
[WhiteElo "2304"]
[BlackElo "2122"]
[Annotator "RC"]
[PlyCount "92"]
[EventDate "2019.01.25"]
[EventType "swiss"]
[EventCountry "POR"]
[SourceTitle "playchess.com"]
[Source "ChessBase"]
[SourceQuality "1"]
[TimeControl "5400+30"]

1. e4 e6 2. d4 d5 3. Nd2 Nf6 4. e5 Nfd7 5. Bd3 c5 6. c3 Nc6 7. Ne2 cxd4 8. cxd4 f6 9. exf6 Qxf6 10. Nf3 h6 11. O-O Bd6 12. Be3 O-O 13. Rc1 Rf7 14. Bb5 Ndb8 15. Ng3 Bd7 16. Re1 Qd8 17. Qe2 Ne7 18. Bd2 {[%emt 1:10:04]} Nbc6 {[%emt 0:38:52]} 19. Bc3 {[%emt 0:00:09]} Rc8 {[%emt 0:10:09]} 20. Rcd1 {[%emt 0:01:43]} Ng6 {[%emt 0:02:39]} 21. Bd2 {[%emt 0:12:17]} Nh4 {[%emt 0:06:38]} 22. Nxh4 {[%emt 0:01:16]} Qxh4 {[%emt 0:00:03]} 23. Be3 {[%emt 0:00:44]} a6 {[%emt 0:05:06]} 24. Bxc6 {[%emt 0:03:55]} Rxc6 {[%emt 0:00:57]} 25. Rc1 {[%emt 0:02:36]} Rxc1 {[%emt 0:02:28]} 26. Rxc1 {[%emt 0:00:06]} e5 {[%emt 0:02:11]} 27. dxe5 {[%emt 0:03:21]} Bxe5 {[%emt 0:00:03]} 28. Bc5 {[%emt 0:01:38]} Qf6 {[%emt 0:08:41]} 29. b3 {[%emt 0:00:26]} Bc6 {[%emt 0:01:04]} 30. Nh5 {[%emt 0:02:52]} Qg5 {[%emt 0:02:14]} 31. Be3 {[%emt 0:01:20]} Qh4 {[%emt 0:03:52]} 32. Ng3 {[%emt 0:01:05]} d4 {[%emt 0:10:13]} 33. Bd2 {[%emt 0:00:15]} Qf6 {[%emt 0:02:10]} 34. f4 {[%emt 0:01:37]} Bc7 {[%emt 0:04:21]} 35. Re1 {[%emt 0:01:03]} Bb6 {[%emt 0:01:23]} 36. Kh1 {[%emt 0:00:32]} Qd8 {[%emt 0:00:35]} 37. Qe6 {[%emt 0:00:29]} Qd5 {[%emt 0:00:55]} 38. Qxd5 {[%emt 0:00:15]} Bxd5 {[%emt 0:00:01]} 39. Re5 {[%emt 0:00:54]} Bc6 {[%emt 0:00:22]} 40. Nf5 {[%emt 0:00:40]} Kh7 {[%emt 0:01:52]} 41. Ne7 {[%emt 0:00:37]} Bb5 {[%emt 0:00:02]} 42. Nd5 {[%emt 0:00:23]} Bc7 {[%emt 0:01:30]} 43. Nxc7 {[%emt 0:00:40]} Rxc7 {[%emt 0:00:02]} 44. Rd5 {[%emt 0:00:23]} Rc2 {[%emt 0:00:46]} 45. Rxd4 {[%emt 0:00:18]} Rxa2 {[%emt 0:00:04]} 46. Kg1 {[%emt 0:00:30]} Bc6 {[%emt 0:01:24]} 1/2-1/2

[Event "Portugal Open 2019"]
[Site "Lisbon"]
[Date "2019.02.05"]
[Round "5.37"]
[White "Fernandes, Alberto"]
[Black "Ilic, Zoran S"]
[Result "1/2-1/2"]
[ECO "A01"]
[WhiteElo "2072"]
[BlackElo "2302"]
[Annotator "RC"]
[PlyCount "101"]
[EventDate "2019.01.25"]
[EventType "swiss"]
[EventCountry "POR"]
[SourceTitle "playchess.com"]
[Source "ChessBase"]
[SourceQuality "1"]
[TimeControl "5400+30"]

1. b3 e5 2. Bb2 d6 3. e4 Nf6 4. Nc3 g6 5. Nf3 Bg7 6. Be2 c5 7. O-O O-O 8. d3 Nc6 9. Nd2 Nd4 10. Nc4 b5 11. Ne3 Bb7 12. Ncd5 Nd7 13. c3 Ne6 14. Bf3 Bc6 15. g3 a5 16. a3 Nb6 17. Bg2 Bxd5 18. Nxd5 Nxd5 19. exd5 Nc7 20. d4 exd4 21. cxd4 Na6 22. Qe2 cxd4 23. Qxb5 Qb8 24. Qxa5 Nc5 25. Qb4 Nxb3 26. Qxb8 Rfxb8 27. Rad1 Ra4 28. f4 Nc5 29. Rf2 d3 30. Bxg7 Kxg7 31. Ra2 Rb3 32. Rda1 Rc3 33. Bf3 d2 34. Kf2 Rc1 35. Bd1 Re4 36. a4 Re1 37. Rxd2 Rxa1 38. Kxe1 Nxa4 39. Kf2 Nc5 40. Bf3 f5 41. h3 Kf6 42. g4 h6 43. Re2 Ra4 44. Kg3 Ra3 45. Kg2 Rd3 46. Kf2 Rd4 47. Kg3 Ne4+ 48. Bxe4 fxe4 49. Kf2 g5 50. Ke3 Rxd5 51. Kxe4 {Ke5+} 1/2-1/2

[Event "Portugal Open 2019"]
[Site "Lisbon"]
[Date "2019.02.06"]
[Round "6.11"]
[White "Pantzar, Milton"]
[Black "Yankelevich, Lev"]
[Result "0-1"]
[ECO "A21"]
[WhiteElo "2331"]
[BlackElo "2445"]
[Annotator "NA"]
[PlyCount "72"]
[EventDate "2019.01.25"]
[EventType "swiss"]
[EventCountry "POR"]
[SourceTitle "playchess.com"]
[Source "ChessBase"]
[SourceQuality "1"]
[TimeControl "5400+30"]

1. c4 {[%emt 0:00:00]} e5 {[%emt 0:04:33]} 2. Nc3 {[%emt 0:00:00]} d6 {[%emt 0:00:05]} 3. g3 {[%emt 0:04:18]} f5 {[%emt 0:00:17]} 4. Bg2 {[%emt 0:02:21]} Nf6 {[%emt 0:00:28]} 5. d3 {[%emt 0:02:20]} g6 {[%emt 0:00:32]} 6. Nf3 {[%emt 0:02:19]} Bg7 {[%emt 0:00:06]} 7. O-O {[%emt 0:00:22]} O-O {[%emt 0:00:28]} 8. Rb1 {[%emt 0:03:24]} a5 {[%emt 0:01:01]} 9. a3 {[%emt 0:02:11]} Nc6 {[%emt 0:04:23]} 10. b4 {[%emt 0:02:18]} axb4 {[%emt 0:00:29]} 11. axb4 {[%emt 0:00:10]} Nd4 {[%emt 0:11:01] [#]} (11... Qe7 $11 {remains equal.}) 12. Nxd4 $1 {[%emt 0:14:53]} exd4 {[%emt 0:00:35]} 13. Nb5 {[%emt 0:00:32]} Ne8 {[%emt 0:08:11]} 14. Bb2 {[%emt 0:03:01]} c5 {[%emt 0:02:19]} 15. bxc5 {[%emt 0:07:43]} dxc5 {[%emt 0:00:07]} 16. Ba3 {[%emt 0:01:07]} Qe7 {[%emt 0:00:28]} 17. Ra1 {[%emt 0:02:59]} Ra6 {[%emt 0:00:07]} 18. Qc2 {[%emt 0:10:55]} ({Better is} 18. Re1 $11) 18... f4 $1 {[%emt 0:02:04]} 19. Ra2 {[%emt 0:02:23]} h5 {[%emt 0:06:14]} 20. Bc1 {[%emt 0:10:38]} fxg3 {[%emt 0:04:45]} 21. hxg3 {[%emt 0:01:54]} h4 {[%emt 0:00:04]} 22. Bf4 {[%emt 0:07:12]} g5 {[%emt 0:01:43]} 23. Bb8 {[%emt 0:00:41]} Be5 {[%emt 0:00:27]} 24. Bd5+ {[%emt 0:03:34]} Kg7 {[%emt 0:00:15]} 25. Bxe5+ {[%emt 0:00:35]} Qxe5 {[%emt 0:00:03]} 26. e3 {[%emt 0:07:25]} Rxa2 {[%emt 0:01:52]} (26... hxg3 $142 27. Rxa6 bxa6 28. exd4 cxd4) 27. Qxa2 {[%emt 0:00:57]} hxg3 {[%emt 0:06:11]} 28. exd4 {[%emt 0:00:44]} cxd4 {[%emt 0:01:23]} 29. Qd2 {[%emt 0:05:45]} Nf6 $11 {[%emt 0:01:24]} (29... Bh3 $5 {[%cal Rh3f1]} 30. Bg2 Bxg2 31. Kxg2 gxf2 32. Rxf2 Rh8 $17) 30. Bg2 {[%emt 0:00:50]} (30. Re1 $11 Qf5 31. Bg2) 30... Ng4 {[%emt 0:01:26]} 31. fxg3 {[%emt 0:00:23]} Rxf1+ {[%emt 0:01:16]} 32. Kxf1 {[%emt 0:00:07]} Kh6 {[%emt 0:00:17]} 33. Kg1 {[%emt 0:01:08]} Bf5 {[%emt 0:01:52]} 34. Bxb7 {[%emt 0:01:17]} Qxg3+ {[%emt 0:00:08]} 35. Qg2 {[%emt 0:00:22]} Qe3+ {[%emt 0:05:25]} 36. Kh1 {[%emt 0:00:05]} Qe1+ 0-1

[Event "Portugal Open 2019"]
[Site "Lisbon"]
[Date "2019.02.06"]
[Round "6.12"]
[White "Shailesh, Dravid"]
[Black "Alshameary Puente, Ismael"]
[Result "0-1"]
[ECO "B96"]
[WhiteElo "2324"]
[BlackElo "2418"]
[Annotator "NA"]
[PlyCount "56"]
[EventDate "2019.01.25"]
[EventType "swiss"]
[EventCountry "POR"]
[SourceTitle "playchess.com"]
[Source "ChessBase"]
[SourceQuality "1"]
[TimeControl "5400+30"]

1. e4 {[%emt 0:00:00]} c5 {[%emt 0:00:42]} 2. Nf3 {[%emt 0:00:16]} d6 {[%emt 0:00:09]} 3. d4 {[%emt 0:00:04]} cxd4 {[%emt 0:00:09]} 4. Nxd4 {[%emt 0:00:04]} Nf6 {[%emt 0:00:20]} 5. Nc3 {[%emt 0:00:05]} a6 {[%emt 0:00:45]} 6. Bg5 {[%emt 0:00:06]} e6 {[%emt 0:00:08]} 7. f4 {[%emt 0:00:05]} h6 {[%emt 0:01:12]} 8. Bh4 {[%emt 0:00:12]} Be7 {[%emt 0:01:14]} 9. Qf3 {[%emt 0:00:09]} Nc6 {[%emt 0:01:21]} 10. Nxc6 {[%emt 0:05:10]} bxc6 {[%emt 0:02:15]} 11. e5 {[%emt 0:01:50]} Nd5 {[%emt 0:02:34]} 12. Bxe7 {[%emt 0:00:17]} Qxe7 {[%emt 0:00:24]} 13. Ne4 {[%emt 0:00:29]} dxe5 {[%emt 0:00:16]} 14. fxe5 {[%emt 0:00:05]} Qb4+ {[%emt 0:00:34]} 15. c3 {[%emt 0:02:13]} Qxb2 {[%emt 0:00:06]} 16. Nd6+ {[%emt 0:00:16]} Ke7 {[%emt 0:00:02]} 17. Rd1 {[%emt 0:22:57]} Qxc3+ {[%emt 0:03:37]} 18. Qxc3 {[%emt 0:00:50]} Nxc3 {[%emt 0:00:02]} 19. Rc1 {[%emt 0:00:10]} (19. Rd3 $17 Nb5 20. Be2) 19... Nxa2 {[%emt 0:03:24]} 20. Rxc6 $19 {[%emt 0:00:33]} Bd7 {[%emt 0:02:29]} 21. Rc7 {[%emt 0:00:05]} f6 {[%emt 0:04:47]} 22. Bc4 {[%emt 0:06:39]} fxe5 {[%emt 0:01:20]} 23. Bxa2 {[%emt 0:03:51]} Kxd6 {[%emt 0:00:02]} 24. Rc2 {[%emt 0:00:04]} Bb5 {[%emt 0:01:00]} 25. Kf2 {[%emt 0:00:08]} Rac8 {[%emt 0:00:19]} 26. Rd2+ {[%emt 0:00:06]} Ke7 {[%emt 0:00:01]} 27. Rhd1 {[%emt 0:01:09]} Rhf8+ {[%emt 0:00:42]} 28. Kg1 {[%emt 0:00:20]} Rfd8 {[%emt 0:00:20]} 0-1

[Event "Portugal Open 2019"]
[Site "Lisbon"]
[Date "2019.02.06"]
[Round "6.24"]
[White "Pietruszewski, Marcin"]
[Black "Haug, Johannes"]
[Result "0-1"]
[ECO "B12"]
[WhiteElo "2226"]
[BlackElo "2403"]
[Annotator "ChessBase"]
[PlyCount "68"]
[EventDate "2019.01.25"]
[EventType "swiss"]
[EventCountry "POR"]
[SourceTitle "playchess.com"]
[Source "ChessBase"]
[SourceQuality "1"]
[TimeControl "5400+30"]

1. e4 {[%emt 0:00:00]} c6 {[%emt 0:02:20]} 2. d4 {[%emt 0:00:00]} d5 {[%emt 0:00:07]} 3. e5 {[%emt 0:00:00]} Bf5 {[%emt 0:00:05]} 4. Nf3 {[%emt 0:00:01]} e6 {[%emt 0:00:25]} 5. Be2 {[%emt 0:00:11]} Ne7 {[%emt 0:02:00]} 6. O-O {[%emt 0:00:18]} Nd7 {[%emt 0:03:23]} 7. Nbd2 {[%emt 0:00:56]} h6 {[%emt 0:00:10]} 8. Nb3 {[%emt 0:00:37]} Qc7 {[%emt 0:01:22]} 9. Bd2 {[%emt 0:19:11]} a5 {[%emt 0:01:08]} 10. a4 {[%emt 0:00:40]} g5 {[%emt 0:00:11]} 11. Re1 {[%emt 0:10:09]} Bg7 {[%emt 0:04:25]} 12. c4 {[%emt 0:01:22]} O-O {[%emt 0:01:10]} 13. Bc3 {[%emt 0:07:53]} f6 {[%emt 0:21:19]} 14. exf6 {[%emt 0:00:48]} Bxf6 {[%emt 0:02:17]} 15. Bd3 {[%emt 0:06:30]} dxc4 {[%emt 0:02:41]} 16. Bxc4 {[%emt 0:01:16]} Nd5 {[%emt 0:00:32]} 17. Qd2 {[%emt 0:05:55]} b6 {[%emt 0:02:53]} 18. Ne5 {[%emt 0:23:58]} Rad8 {[%emt 0:04:43]} 19. Nxd7 {[%emt 0:01:04]} Qxd7 {[%emt 0:05:11]} 20. Rad1 {[%emt 0:02:31]} Kh8 {[%emt 0:06:23]} 21. Bd3 {[%emt 0:00:06]} Nf4 {[%emt 0:03:21]} 22. Bxf5 {[%emt 0:02:46]} exf5 {[%emt 0:00:04]} 23. f3 {[%emt 0:00:07]} Qd5 {[%emt 0:01:45]} 24. Nc1 {[%emt 0:00:02]} Rfe8 {[%emt 0:00:53]} 25. Rxe8+ {[%emt 0:03:46]} Rxe8 {[%emt 0:00:11]} 26. Qc2 {[%emt 0:00:03]} Kg7 {[%emt 0:04:52]} 27. Kf1 {[%emt 0:04:47]} Qc4+ {[%emt 0:05:20]} 28. Kf2 {[%emt 0:00:02]} Nd5 {[%emt 0:06:21]} 29. Rd2 {[%emt 0:06:18]} b5 {[%emt 0:06:44]} 30. Ne2 {[%emt 0:03:09]} b4 {[%emt 0:01:52]} 31. b3 {[%emt 0:00:09]} Rxe2+ {[%emt 0:00:32]} 32. Rxe2 {[%emt 0:00:01]} Qxc3 {[%emt 0:00:11]} 33. Qxf5 {[%emt 0:00:02]} Qxd4+ {[%emt 0:00:12]} 34. Ke1 {[%emt 0:01:07]} Nf4 {[%emt 0:01:04]} 0-1

[Event "Portugal Open 2019"]
[Site "Lisbon"]
[Date "2019.02.06"]
[Round "6.26"]
[White "Carrasco Martinez, Juan M."]
[Black "Martins, Bruno Andre Leite"]
[Result "1-0"]
[ECO "B23"]
[WhiteElo "2380"]
[BlackElo "2204"]
[Annotator "NA"]
[PlyCount "73"]
[EventDate "2019.01.25"]
[EventType "swiss"]
[EventCountry "POR"]
[SourceTitle "playchess.com"]
[Source "ChessBase"]
[SourceQuality "1"]
[TimeControl "5400+30"]

1. e4 {[%emt 0:00:00]} c5 {[%emt 0:00:24]} 2. Nc3 {[%emt 0:00:00]} g6 {[%emt 0:00:54]} 3. f4 {[%emt 0:00:03]} Bg7 {[%emt 0:01:17]} 4. Nf3 {[%emt 0:00:08]} Nc6 {[%emt 0:00:05]} 5. Bb5 {[%emt 0:00:22]} Nd4 {[%emt 0:00:41]} 6. a4 {[%emt 0:00:17]} a6 {[%emt 0:09:02]} 7. Bc4 {[%emt 0:00:14]} e6 {[%emt 0:00:13]} 8. d3 {[%emt 0:03:10]} Ne7 {[%emt 0:00:36]} 9. e5 {[%emt 0:04:51]} d6 {[%emt 0:04:49]} 10. exd6 {[%emt 0:15:50]} Qxd6 {[%emt 0:03:51]} 11. Ne4 {[%emt 0:02:45]} Qc7 {[%emt 0:02:17]} 12. c3 {[%emt 0:02:35]} Ndf5 {[%emt 0:09:25]} 13. a5 {[%emt 0:05:37]} O-O {[%emt 0:07:25]} 14. O-O {[%emt 0:03:08]} Nd5 {[%emt 0:06:09]} 15. Qe1 {[%emt 0:05:13]} Nd6 {[%emt 0:08:36]} 16. Qh4 {[%emt 0:01:48]} f5 {[%emt 0:05:03]} (16... b5 $11 {remains equal.} 17. axb6 Nxb6) 17. Nxd6 {[%emt 0:05:54]} Qxd6 {[%emt 0:00:41]} 18. Re1 {[%emt 0:00:53]} Bd7 {[%emt 0:04:08]} 19. Ng5 {[%emt 0:03:18]} h6 {[%emt 0:00:49]} 20. Nf3 {[%emt 0:00:06]} Rae8 {[%emt 0:04:04]} 21. Qg3 {[%emt 0:04:47]} Kh7 {[%emt 0:03:31]} 22. Ne5 {[%emt 0:00:22]} Bxe5 {[%emt 0:02:04]} 23. Rxe5 {[%emt 0:05:18]} g5 $16 {[%emt 0:02:32]} (23... Bc6 $14) 24. fxg5 {[%emt 0:06:24]} f4 {[%emt 0:04:02]} 25. g6+ {[%emt 0:01:32]} Kg7 {[%emt 0:00:14]} 26. Qe1 {[%emt 0:00:27]} Rf5 {[%emt 0:01:34]} 27. Rxf5 {[%emt 0:08:18]} exf5 {[%emt 0:00:06]} 28. Qf2 {[%emt 0:00:55]} Ne3 {[%emt 0:00:54]} 29. Bd2 {[%emt 0:03:12]} Bc6 {[%emt 0:02:12]} 30. Bf7 {[%emt 0:03:26]} Ng4 {[%emt 0:05:26]} 31. Bxf4 {[%emt 0:00:39]} Nxf2 {[%emt 0:03:41]} 32. Bxd6 {[%emt 0:00:07]} Re2 {[%emt 0:00:24]} 33. Kf1 {[%emt 0:01:14]} Rxb2 {[%emt 0:01:46]} 34. Be5+ {[%emt 0:00:09]} Kf8 {[%emt 0:00:08]} 35. Bc4 {[%emt 0:00:57]} Bxg2+ {[%emt 0:01:42]} 36. Ke1 {[%emt 0:00:04]} Bd5 {[%emt 0:04:21]} 37. g7+ {[%emt 0:00:10]} 1-0